[Event "Titled Tuesday Blitz November 14 Early 2023"]
[White "Bilan, Danila"]
[Black "Ruge, Edison"]
[WhiteFideId "24161918"]
[BlackFideId "4401000"]
[WhiteElo "2547"]
[BlackElo "2340"]
[Result "1-0"]
[Round "9"]
[TimeControl "180+1"]
[Date "2023.11.14"]
[WhiteClock "0:00:03"]
[BlackClock "0:00:00"]
[Board "95"]

1. d4 {[%clk 0:03:00]}  d5 {[%clk 0:02:59]} 2. Nf3 {[%clk 0:03:01]}  e6 {[%clk 0:02:59]} 3. c4 {[%clk 0:03:01]}  c6 {[%clk 0:02:59]} 4. Qc2 {[%clk 0:02:56]}  f5 {[%clk 0:02:58]} 5. g3 {[%clk 0:02:55]}  Nf6 {[%clk 0:02:57]} 6. Bg2 {[%clk 0:02:56]}  Be7 {[%clk 0:02:58]} 7. O-O {[%clk 0:02:56]}  O-O {[%clk 0:02:58]} 8. Bf4 {[%clk 0:02:57]}  Bd7 {[%clk 0:02:58]} 9. Ne5 {[%clk 0:02:57]}  Be8 {[%clk 0:02:56]} 10. cxd5 {[%clk 0:02:55]}  cxd5 {[%clk 0:02:54]} 11. Nc3 {[%clk 0:02:54]}  a6 {[%clk 0:02:52]} 12. Na4 {[%clk 0:02:43]}  Nc6 {[%clk 0:02:49]} 13. Nc5 {[%clk 0:02:41]}  Nxd4 {[%clk 0:02:42]} 14. Nxb7 {[%clk 0:02:03]}  Nxc2 {[%clk 0:02:34]} 15. Nxd8 {[%clk 0:02:03]}  Rxd8 {[%clk 0:02:34]} 16. Rac1 {[%clk 0:01:55]}  Nd4 {[%clk 0:02:31]} 17. Rfe1 {[%clk 0:01:51]}  Bb5 {[%clk 0:02:25]} 18. Bf1 {[%clk 0:01:29]}  Bb4 {[%clk 0:02:23]} 19. e3 {[%clk 0:00:47]}  Bxe1 {[%clk 0:02:18]} 20. exd4 {[%clk 0:00:40]}  Bxf1 {[%clk 0:02:15]} 21. Kxf1 {[%clk 0:00:36]}  Ba5 {[%clk 0:01:31]} 22. Nc6 {[%clk 0:00:35]}  Bb6 {[%clk 0:01:31]} 23. Nxd8 {[%clk 0:00:33]}  Bxd8 {[%clk 0:01:29]} 24. Rc6 {[%clk 0:00:31]}  a5 {[%clk 0:01:25]} 25. Rxe6 {[%clk 0:00:28]}  Re8 {[%clk 0:01:25]} 26. Ra6 {[%clk 0:00:24]}  Kf7 {[%clk 0:01:23]} 27. f3 {[%clk 0:00:23]}  h6 {[%clk 0:01:22]} 28. Kf2 {[%clk 0:00:15]}  Re6 {[%clk 0:01:22]} 29. Ra7+ {[%clk 0:00:13]}  Re7 {[%clk 0:01:21]} 30. Ra6 {[%clk 0:00:12]}  Rb7 {[%clk 0:01:20]} 31. b3 {[%clk 0:00:11]}  Bc7 {[%clk 0:01:02]} 32. Bd2 {[%clk 0:00:11]}  Bb6 {[%clk 0:00:55]} 33. Ke3 {[%clk 0:00:11]}  Re7+ {[%clk 0:00:53]} 34. Kd3 {[%clk 0:00:12]}  Nd7 {[%clk 0:00:51]} 35. Bxa5 {[%clk 0:00:12]}  Bxa5 {[%clk 0:00:50]} 36. Rxa5 {[%clk 0:00:13]}  f4 {[%clk 0:00:48]} 37. gxf4 {[%clk 0:00:09]}  Re1 {[%clk 0:00:49]} 38. Rxd5 {[%clk 0:00:08]}  Nf6 {[%clk 0:00:44]} 39. Re5 {[%clk 0:00:08]}  Ra1 {[%clk 0:00:43]} 40. Re2 {[%clk 0:00:08]}  Nd5 {[%clk 0:00:40]} 41. Kc4 {[%clk 0:00:08]}  Nxf4 {[%clk 0:00:37]} 42. Rb2 {[%clk 0:00:08]}  Rc1+ {[%clk 0:00:36]} 43. Kb5 {[%clk 0:00:08]}  Nd5 {[%clk 0:00:29]} 44. a4 {[%clk 0:00:07]}  Ke6 {[%clk 0:00:29]} 45. a5 {[%clk 0:00:07]}  Kd6 {[%clk 0:00:29]} 46. b4 {[%clk 0:00:05]}  Rc6 {[%clk 0:00:26]} 47. Ka4 {[%clk 0:00:05]}  Nc3+ {[%clk 0:00:25]} 48. Kb3 {[%clk 0:00:05]}  Nb5 {[%clk 0:00:24]} 49. Ka4 {[%clk 0:00:05]}  Nc3+ {[%clk 0:00:21]} 50. Kb3 {[%clk 0:00:05]}  Nb5 {[%clk 0:00:16]} 51. Rg2 {[%clk 0:00:05]}  Nxd4+ {[%clk 0:00:16]} 52. Ka4 {[%clk 0:00:03]}  g5 {[%clk 0:00:15]} 53. h4 {[%clk 0:00:03]}  Nxf3 {[%clk 0:00:13]} 54. hxg5 {[%clk 0:00:02]}  Nxg5 {[%clk 0:00:12]} 55. Rh2 {[%clk 0:00:02]}  Kd5 {[%clk 0:00:11]} 56. Rd2+ {[%clk 0:00:02]}  Ke5 {[%clk 0:00:10]} 57. b5 {[%clk 0:00:02]}  Rc4+ {[%clk 0:00:10]} 58. Kb3 {[%clk 0:00:03]}  Rc5 {[%clk 0:00:08]} 59. Kb4 {[%clk 0:00:02]}  Rc1 {[%clk 0:00:08]} 60. a6 {[%clk 0:00:02]}  Ne4 {[%clk 0:00:09]} 61. Re2 {[%clk 0:00:02]}  Kd4 {[%clk 0:00:08]} 62. Ka5 {[%clk 0:00:02]}  Nc5 {[%clk 0:00:06]} 63. Kb6 {[%clk 0:00:02]}  Ne4 {[%clk 0:00:03]} 64. Rh2 {[%clk 0:00:02]}  Ra1 {[%clk 0:00:02]} 65. Rxh6 {[%clk 0:00:02]}  Kc4 {[%clk 0:00:02]} 66. Rh4 {[%clk 0:00:03]}  Kd5 {[%clk 0:00:00]} 67. a7 {[%clk 0:00:03]} 1-0


[Site "https://www.chess.com"]

[Event "Titled Tuesday Blitz November 14 Early 2023"]
[White "Maect19"]
[Black "TomLiu777"]
[WhiteElo "2336"]
[BlackElo "2538"]
[Result "0-1"]
[Round "9"]
[TimeControl "180+1"]
[Date "2023.11.14"]
[WhiteClock "0:00:12"]
[BlackClock "0:00:16"]
[Board "96"]

1. d4 {[%clk 0:03:00]}  Nf6 {[%clk 0:02:44]} 2. Nf3 {[%clk 0:02:59]}  c5 {[%clk 0:02:40]} 3. c3 {[%clk 0:02:57]}  e6 {[%clk 0:02:39]} 4. Bg5 {[%clk 0:02:54]}  d5 {[%clk 0:02:35]} 5. e3 {[%clk 0:02:53]}  Nc6 {[%clk 0:02:32]} 6. Nbd2 {[%clk 0:02:53]}  Bd6 {[%clk 0:02:31]} 7. Bd3 {[%clk 0:02:52]}  cxd4 {[%clk 0:02:31]} 8. exd4 {[%clk 0:02:50]}  O-O {[%clk 0:02:19]} 9. O-O {[%clk 0:02:49]}  h6 {[%clk 0:02:18]} 10. Bh4 {[%clk 0:02:48]}  Bd7 {[%clk 0:02:15]} 11. Rc1 {[%clk 0:02:48]}  Rc8 {[%clk 0:02:14]} 12. Bb1 {[%clk 0:02:48]}  Bf4 {[%clk 0:01:58]} 13. Re1 {[%clk 0:02:22]}  Re8 {[%clk 0:01:49]} 14. Bg3 {[%clk 0:02:20]}  Qc7 {[%clk 0:01:45]} 15. Bxf4 {[%clk 0:02:19]}  Qxf4 {[%clk 0:01:44]} 16. Nf1 {[%clk 0:02:19]}  Qd6 {[%clk 0:01:17]} 17. Ng3 {[%clk 0:02:18]}  Rcd8 {[%clk 0:01:10]} 18. Ne5 {[%clk 0:02:15]}  Qf8 {[%clk 0:01:05]} 19. Qd3 {[%clk 0:02:04]}  g6 {[%clk 0:00:51]} 20. Qf3 {[%clk 0:01:41]}  Qg7 {[%clk 0:00:48]} 21. Ng4 {[%clk 0:01:22]}  Nxg4 {[%clk 0:00:46]} 22. Qxg4 {[%clk 0:01:22]}  e5 {[%clk 0:00:46]} 23. Qf3 {[%clk 0:01:13]}  e4 {[%clk 0:00:45]} 24. Qf4 {[%clk 0:01:09]}  f5 {[%clk 0:00:40]} 25. h4 {[%clk 0:01:07]}  g5 {[%clk 0:00:38]} 26. hxg5 {[%clk 0:01:05]}  hxg5 {[%clk 0:00:38]} 27. Qc7 {[%clk 0:01:01]}  f4 {[%clk 0:00:33]} 28. Nf1 {[%clk 0:00:41]}  Be6 {[%clk 0:00:26]} 29. Qxg7+ {[%clk 0:00:38]}  Kxg7 {[%clk 0:00:27]} 30. g3 {[%clk 0:00:38]}  Kf6 {[%clk 0:00:27]} 31. Bc2 {[%clk 0:00:35]}  Rh8 {[%clk 0:00:20]} 32. c4 {[%clk 0:00:20]}  Nxd4 {[%clk 0:00:17]} 33. cxd5 {[%clk 0:00:19]}  Nf3+ {[%clk 0:00:17]} 34. Kg2 {[%clk 0:00:12]}  Bh3+ {[%clk 0:00:16]} 0-1


[Site "https://www.chess.com"]

[Event "Titled Tuesday Blitz November 14 Early 2023"]
[White "LeoLV10"]
[Black "Quirke, Jeffrey"]
[BlackFideId "2013029"]
[WhiteElo "2527"]
[BlackElo "2281"]
[Result "0-1"]
[Round "9"]
[TimeControl "180+1"]
[Date "2023.11.14"]
[WhiteClock "0:00:17"]
[BlackClock "0:00:29"]
[Board "99"]

1. e4 {[%clk 0:02:58]}  e6 {[%clk 0:02:59]} 2. d4 {[%clk 0:02:57]}  d5 {[%clk 0:03:00]} 3. e5 {[%clk 0:02:58]}  c5 {[%clk 0:03:00]} 4. c3 {[%clk 0:02:58]}  Nc6 {[%clk 0:02:59]} 5. Nf3 {[%clk 0:02:58]}  Nge7 {[%clk 0:02:56]} 6. Bd3 {[%clk 0:02:55]}  cxd4 {[%clk 0:02:55]} 7. cxd4 {[%clk 0:02:55]}  Nf5 {[%clk 0:02:55]} 8. Bxf5 {[%clk 0:02:54]}  exf5 {[%clk 0:02:55]} 9. Nc3 {[%clk 0:02:55]}  Be6 {[%clk 0:02:49]} 10. O-O {[%clk 0:02:55]}  h6 {[%clk 0:02:49]} 11. a3 {[%clk 0:02:54]}  g5 {[%clk 0:02:36]} 12. b4 {[%clk 0:02:51]}  Be7 {[%clk 0:02:30]} 13. Na4 {[%clk 0:02:44]}  b6 {[%clk 0:02:26]} 14. Qd3 {[%clk 0:02:38]}  Rc8 {[%clk 0:02:21]} 15. Bb2 {[%clk 0:02:35]}  Qd7 {[%clk 0:02:15]} 16. Nc3 {[%clk 0:02:34]}  f4 {[%clk 0:02:13]} 17. Rac1 {[%clk 0:02:31]}  Bf5 {[%clk 0:02:11]} 18. Qb5 {[%clk 0:02:31]}  g4 {[%clk 0:01:51]} 19. Nxd5 {[%clk 0:02:10]}  gxf3 {[%clk 0:01:43]} 20. Rfe1 {[%clk 0:01:52]}  Rg8 {[%clk 0:01:26]} 21. Nf6+ {[%clk 0:01:43]}  Bxf6 {[%clk 0:01:22]} 22. exf6+ {[%clk 0:01:44]}  Kf8 {[%clk 0:01:12]} 23. d5 {[%clk 0:01:40]}  Rxg2+ {[%clk 0:01:08]} 24. Kh1 {[%clk 0:01:40]}  Bd3 {[%clk 0:00:45]} 25. Re8+ {[%clk 0:00:24]}  Rxe8 {[%clk 0:00:31]} 26. Qxd3 {[%clk 0:00:19]}  Qh3 {[%clk 0:00:29]} 27. d6 {[%clk 0:00:17]}  Qxh2# {[%clk 0:00:29]} 0-1


[Site "https://www.chess.com"]

[Event "Titled Tuesday Blitz November 14 Early 2023"]
[White "Samarth J Rao"]
[Black "Mestnikov, Aisen"]
[WhiteFideId "46652370"]
[BlackFideId "34130117"]
[WhiteElo "2086"]
[BlackElo "2402"]
[Result "0-1"]
[Round "9"]
[TimeControl "180+1"]
[Date "2023.11.14"]
[WhiteClock "0:02:28"]
[BlackClock "0:02:31"]
[Board "100"]

1. Nf3 {[%clk 0:03:00]}  Nf6 {[%clk 0:02:59]} 2. c4 {[%clk 0:03:01]}  g6 {[%clk 0:02:59]} 3. b3 {[%clk 0:03:01]}  Bg7 {[%clk 0:02:59]} 4. Bb2 {[%clk 0:03:01]}  O-O {[%clk 0:03:00]} 5. e3 {[%clk 0:03:00]}  c5 {[%clk 0:03:00]} 6. Be2 {[%clk 0:03:00]}  Nc6 {[%clk 0:03:00]} 7. O-O {[%clk 0:03:00]}  b6 {[%clk 0:03:00]} 8. d4 {[%clk 0:03:00]}  d5 {[%clk 0:03:00]} 9. dxc5 {[%clk 0:03:00]}  bxc5 {[%clk 0:03:00]} 10. Nc3 {[%clk 0:03:00]}  d4 {[%clk 0:02:57]} 11. Na4 {[%clk 0:02:56]}  Ne4 {[%clk 0:02:45]} 12. Bd3 {[%clk 0:02:51]}  Nc3 {[%clk 0:02:31]} 13. Bxc3 {[%clk 0:02:45]}  dxc3 {[%clk 0:02:32]} 14. Qc2 {[%clk 0:02:28]}  Nb4 {[%clk 0:02:31]} 0-1


[Site "https://www.chess.com"]

[Event "Titled Tuesday Blitz November 14 Early 2023"]
[White "ploxoi"]
[Black "Bogaudinov, Rushan"]
[BlackFideId "4129288"]
[WhiteElo "2458"]
[BlackElo "2348"]
[Result "1-0"]
[Round "9"]
[TimeControl "180+1"]
[Date "2023.11.14"]
[WhiteClock "0:01:01"]
[BlackClock "0:00:05"]
[Board "106"]

1. d4 {[%clk 0:03:00]}  d5 {[%clk 0:02:54]} 2. c4 {[%clk 0:02:59]}  e6 {[%clk 0:02:54]} 3. Nf3 {[%clk 0:02:57]}  Nf6 {[%clk 0:02:54]} 4. g3 {[%clk 0:02:57]}  Be7 {[%clk 0:02:54]} 5. Bg2 {[%clk 0:02:57]}  O-O {[%clk 0:02:55]} 6. O-O {[%clk 0:02:58]}  c6 {[%clk 0:02:53]} 7. Qc2 {[%clk 0:02:56]}  Nbd7 {[%clk 0:02:52]} 8. Nbd2 {[%clk 0:02:56]}  Re8 {[%clk 0:02:51]} 9. e4 {[%clk 0:02:54]}  dxe4 {[%clk 0:02:51]} 10. Nxe4 {[%clk 0:02:55]}  b6 {[%clk 0:02:50]} 11. Rd1 {[%clk 0:02:54]}  Bb7 {[%clk 0:02:49]} 12. Bf4 {[%clk 0:02:52]}  Nf8 {[%clk 0:02:45]} 13. Be5 {[%clk 0:02:35]}  Ng6 {[%clk 0:02:40]} 14. Bxf6 {[%clk 0:02:34]}  Bxf6 {[%clk 0:02:40]} 15. Nxf6+ {[%clk 0:02:35]}  Qxf6 {[%clk 0:02:39]} 16. Qe4 {[%clk 0:02:33]}  Rab8 {[%clk 0:02:36]} 17. c5 {[%clk 0:02:33]}  Red8 {[%clk 0:01:58]} 18. b4 {[%clk 0:02:31]}  Rd5 {[%clk 0:01:48]} 19. h4 {[%clk 0:02:29]}  Rbd8 {[%clk 0:01:44]} 20. Rab1 {[%clk 0:02:27]}  h5 {[%clk 0:01:32]} 21. Rd2 {[%clk 0:02:11]}  bxc5 {[%clk 0:01:20]} 22. bxc5 {[%clk 0:02:08]}  Ba6 {[%clk 0:01:20]} 23. Rb4 {[%clk 0:02:06]}  e5 {[%clk 0:00:58]} 24. dxe5 {[%clk 0:02:02]}  Qe6 {[%clk 0:00:37]} 25. Ng5 {[%clk 0:01:47]}  Qe7 {[%clk 0:00:28]} 26. Rxd5 {[%clk 0:01:45]}  cxd5 {[%clk 0:00:29]} 27. Qd4 {[%clk 0:01:42]}  Qxe5 {[%clk 0:00:25]} 28. Nf3 {[%clk 0:01:39]}  Qxd4 {[%clk 0:00:20]} 29. Nxd4 {[%clk 0:01:40]}  Bc4 {[%clk 0:00:20]} 30. Rb7 {[%clk 0:01:39]}  a6 {[%clk 0:00:18]} 31. Bh3 {[%clk 0:01:36]}  Ne5 {[%clk 0:00:13]} 32. c6 {[%clk 0:01:36]}  Nxc6 {[%clk 0:00:11]} 33. Nxc6 {[%clk 0:01:37]}  Rd6 {[%clk 0:00:11]} 34. Ne7+ {[%clk 0:01:36]}  Kf8 {[%clk 0:00:10]} 35. Nf5 {[%clk 0:01:35]}  Rd8 {[%clk 0:00:10]} 36. a4 {[%clk 0:01:31]}  d4 {[%clk 0:00:10]} 37. Rc7 {[%clk 0:01:28]}  Be6 {[%clk 0:00:10]} 38. Rc2 {[%clk 0:01:25]}  g6 {[%clk 0:00:09]} 39. Nxd4 {[%clk 0:01:14]}  Bxh3 {[%clk 0:00:09]} 40. Nb3 {[%clk 0:01:12]}  Bf5 {[%clk 0:00:09]} 41. Rc3 {[%clk 0:01:11]}  Rd1+ {[%clk 0:00:09]} 42. Kg2 {[%clk 0:01:10]}  Rd3 {[%clk 0:00:08]} 43. Rxd3 {[%clk 0:01:09]}  Bxd3 {[%clk 0:00:09]} 44. a5 {[%clk 0:01:10]}  Ke7 {[%clk 0:00:08]} 45. Kf3 {[%clk 0:01:10]}  Bc4 {[%clk 0:00:07]} 46. Nd2 {[%clk 0:01:09]}  Bd5+ {[%clk 0:00:07]} 47. Ke3 {[%clk 0:01:09]}  Kd6 {[%clk 0:00:07]} 48. Kd4 {[%clk 0:01:10]}  Bc6 {[%clk 0:00:07]} 49. Nc4+ {[%clk 0:01:10]}  Kc7 {[%clk 0:00:07]} 50. Kc5 {[%clk 0:01:11]}  Be8 {[%clk 0:00:07]} 51. Nd6 {[%clk 0:01:08]}  Bc6 {[%clk 0:00:05]} 52. Nxf7 {[%clk 0:01:08]}  Be4 {[%clk 0:00:05]} 53. Ne5 {[%clk 0:01:09]}  Kd8 {[%clk 0:00:04]} 54. Kb6 {[%clk 0:01:09]}  Ke7 {[%clk 0:00:05]} 55. Kxa6 {[%clk 0:01:09]}  Ke6 {[%clk 0:00:05]} 56. Nc4 {[%clk 0:01:09]}  Kd5 {[%clk 0:00:05]} 57. Ne3+ {[%clk 0:01:09]}  Kd4 {[%clk 0:00:06]} 58. g4 {[%clk 0:01:06]}  hxg4 {[%clk 0:00:06]} 59. Nxg4 {[%clk 0:01:07]}  Bf3 {[%clk 0:00:05]} 60. Nh2 {[%clk 0:01:06]}  Bh5 {[%clk 0:00:04]} 61. Kb6 {[%clk 0:01:06]}  Be2 {[%clk 0:00:03]} 62. a6 {[%clk 0:01:04]}  Bc4 {[%clk 0:00:02]} 63. Ng4 {[%clk 0:01:00]}  Bd5 {[%clk 0:00:03]} 64. Nf6 {[%clk 0:00:59]}  Bf3 {[%clk 0:00:03]} 65. a7 {[%clk 0:00:58]}  Kd3 {[%clk 0:00:04]} 66. h5 {[%clk 0:00:58]}  gxh5 {[%clk 0:00:04]} 67. Nxh5 {[%clk 0:00:59]}  Ke2 {[%clk 0:00:05]} 68. Nf4+ {[%clk 0:00:59]}  Kxf2 {[%clk 0:00:06]} 69. Ne6 {[%clk 0:01:00]}  Ke3 {[%clk 0:00:06]} 70. Nc5 {[%clk 0:01:01]}  Bd5 {[%clk 0:00:06]} 71. Nb7 {[%clk 0:01:02]}  Kd4 {[%clk 0:00:07]} 72. a8=Q {[%clk 0:01:01]}  Bc4 {[%clk 0:00:05]} 73. Qa5 {[%clk 0:01:01]} 1-0


[Site "https://www.chess.com"]

[Event "Titled Tuesday Blitz November 14 Early 2023"]
[White "Azali, Tannaz"]
[Black "VitaliyChayka"]
[WhiteFideId "12537721"]
[WhiteElo "2404"]
[BlackElo "2250"]
[Result "0-1"]
[Round "9"]
[TimeControl "180+1"]
[Date "2023.11.14"]
[WhiteClock "0:00:05"]
[BlackClock "0:00:19"]
[Board "110"]

1. d4 {[%clk 0:02:55]}  d6 {[%clk 0:03:00]} 2. c4 {[%clk 0:02:55]}  e5 {[%clk 0:03:00]} 3. d5 {[%clk 0:02:55]}  Be7 {[%clk 0:02:59]} 4. Nc3 {[%clk 0:02:55]}  Bg5 {[%clk 0:03:00]} 5. e4 {[%clk 0:02:55]}  Bxc1 {[%clk 0:02:59]} 6. Rxc1 {[%clk 0:02:55]}  Nd7 {[%clk 0:02:55]} 7. g3 {[%clk 0:02:56]}  a5 {[%clk 0:02:50]} 8. Bg2 {[%clk 0:02:56]}  Nc5 {[%clk 0:02:48]} 9. Nge2 {[%clk 0:02:56]}  Nf6 {[%clk 0:02:46]} 10. O-O {[%clk 0:02:56]}  O-O {[%clk 0:02:47]} 11. b3 {[%clk 0:02:56]}  Bd7 {[%clk 0:02:45]} 12. a3 {[%clk 0:02:56]}  Qe7 {[%clk 0:02:42]} 13. b4 {[%clk 0:02:55]}  axb4 {[%clk 0:02:41]} 14. axb4 {[%clk 0:02:56]}  Na6 {[%clk 0:02:39]} 15. Rb1 {[%clk 0:02:56]}  c5 {[%clk 0:02:37]} 16. bxc5 {[%clk 0:02:44]}  Nxc5 {[%clk 0:02:36]} 17. Qc2 {[%clk 0:02:42]}  Rfc8 {[%clk 0:02:29]} 18. Ra1 {[%clk 0:02:34]}  Qd8 {[%clk 0:02:26]} 19. h3 {[%clk 0:02:27]}  Rxa1 {[%clk 0:02:08]} 20. Rxa1 {[%clk 0:02:25]}  Ra8 {[%clk 0:02:08]} 21. Rb1 {[%clk 0:02:22]}  Qc8 {[%clk 0:02:07]} 22. Kh2 {[%clk 0:02:22]}  Na4 {[%clk 0:01:57]} 23. Nxa4 {[%clk 0:02:19]}  Rxa4 {[%clk 0:01:58]} 24. c5 {[%clk 0:02:10]}  dxc5 {[%clk 0:01:55]} 25. Nc3 {[%clk 0:01:57]}  Rd4 {[%clk 0:01:55]} 26. Rb6 {[%clk 0:01:47]}  c4 {[%clk 0:01:40]} 27. Qb2 {[%clk 0:01:32]}  Rd3 {[%clk 0:01:36]} 28. Rxb7 {[%clk 0:01:30]}  Qc5 {[%clk 0:01:10]} 29. Rb8+ {[%clk 0:01:22]}  Ne8 {[%clk 0:01:07]} 30. Bf1 {[%clk 0:01:08]}  Rd4 {[%clk 0:00:50]} 31. Bg2 {[%clk 0:00:58]}  h6 {[%clk 0:00:47]} 32. Rd8 {[%clk 0:00:41]}  Qe7 {[%clk 0:00:45]} 33. Qb8 {[%clk 0:00:38]}  Kh7 {[%clk 0:00:43]} 34. d6 {[%clk 0:00:20]}  Qxd6 {[%clk 0:00:26]} 35. Rxe8 {[%clk 0:00:18]}  Bxe8 {[%clk 0:00:23]} 36. Qxe8 {[%clk 0:00:18]}  Qf6 {[%clk 0:00:22]} 37. Qc8 {[%clk 0:00:16]}  Qxf2 {[%clk 0:00:21]} 38. Qf5+ {[%clk 0:00:14]}  Qxf5 {[%clk 0:00:21]} 39. exf5 {[%clk 0:00:15]}  Rd3 {[%clk 0:00:20]} 40. Ne4 {[%clk 0:00:15]}  c3 {[%clk 0:00:21]} 41. f6 {[%clk 0:00:05]}  c2 {[%clk 0:00:19]} 0-1


[Site "https://www.chess.com"]

[Event "Titled Tuesday Blitz November 14 Early 2023"]
[White "Ghosh, Chanchal Kumer"]
[Black "Sharafiev, Azat"]
[WhiteFideId "10201858"]
[BlackFideId "4186214"]
[WhiteElo "2143"]
[BlackElo "2392"]
[Result "0-1"]
[Round "9"]
[TimeControl "180+1"]
[Date "2023.11.14"]
[WhiteClock "0:00:00"]
[BlackClock "0:02:01"]
[Board "111"]

1. e4 {[%clk 0:02:56]}  c5 {[%clk 0:02:59]} 2. Nf3 {[%clk 0:02:55]}  d6 {[%clk 0:02:59]} 3. d4 {[%clk 0:02:54]}  cxd4 {[%clk 0:03:00]} 4. Nxd4 {[%clk 0:02:55]}  Nf6 {[%clk 0:03:01]} 5. Nc3 {[%clk 0:02:55]}  a6 {[%clk 0:03:01]} 6. Be2 {[%clk 0:02:54]}  e5 {[%clk 0:03:01]} 7. Nb3 {[%clk 0:02:54]}  Be6 {[%clk 0:03:01]} 8. Be3 {[%clk 0:02:52]}  Be7 {[%clk 0:03:00]} 9. g4 {[%clk 0:02:41]}  Nc6 {[%clk 0:02:53]} 10. g5 {[%clk 0:02:40]}  Nd7 {[%clk 0:02:54]} 11. Rg1 {[%clk 0:02:32]}  b5 {[%clk 0:02:53]} 12. Qd2 {[%clk 0:02:30]}  Qc7 {[%clk 0:02:53]} 13. O-O-O {[%clk 0:02:28]}  O-O-O {[%clk 0:02:48]} 14. Bxb5 {[%clk 0:02:03]}  axb5 {[%clk 0:02:48]} 15. Nxb5 {[%clk 0:02:03]}  Qb8 {[%clk 0:02:47]} 16. Qc3 {[%clk 0:01:56]}  Qxb5 {[%clk 0:02:46]} 17. Rd5 {[%clk 0:01:47]}  Bxd5 {[%clk 0:02:45]} 18. exd5 {[%clk 0:01:47]}  Nb8 {[%clk 0:02:46]} 19. Rd1 {[%clk 0:01:32]}  Rd7 {[%clk 0:02:34]} 20. dxc6 {[%clk 0:01:31]}  Rc7 {[%clk 0:02:34]} 21. Rd3 {[%clk 0:00:59]}  Nxc6 {[%clk 0:02:32]} 22. Qd2 {[%clk 0:00:38]}  Nb4 {[%clk 0:02:30]} 23. Rc3 {[%clk 0:00:34]}  Nxa2+ {[%clk 0:02:30]} 24. Kb1 {[%clk 0:00:29]}  Nxc3+ {[%clk 0:02:29]} 25. bxc3 {[%clk 0:00:30]}  Kd7 {[%clk 0:02:27]} 26. Kc1 {[%clk 0:00:19]}  Rhc8 {[%clk 0:02:26]} 27. Qd1 {[%clk 0:00:16]}  Rxc3 {[%clk 0:02:26]} 28. Qg4+ {[%clk 0:00:16]}  Kd8 {[%clk 0:02:25]} 29. Na1 {[%clk 0:00:10]}  Qc6 {[%clk 0:02:14]} 30. Qf5 {[%clk 0:00:09]}  Qa4 {[%clk 0:02:09]} 31. Bb6+ {[%clk 0:00:06]}  Ke8 {[%clk 0:02:07]} 32. Kd2 {[%clk 0:00:01]}  Qxa1 {[%clk 0:02:02]} 33. Qxh7 {[%clk 0:00:00]}  Rxc2+ {[%clk 0:02:01]} 0-1


[Site "https://www.chess.com"]

[Event "Titled Tuesday Blitz November 14 Early 2023"]
[White "Al-Tarboush, Ward"]
[Black "Marcziter, Dmitrii"]
[WhiteFideId "7601450"]
[BlackFideId "13900765"]
[WhiteElo "2606"]
[BlackElo "2405"]
[Result "1-0"]
[Round "9"]
[TimeControl "180+1"]
[Date "2023.11.14"]
[WhiteClock "0:00:03"]
[BlackClock "0:00:03"]
[Board "112"]

1. e4 {[%clk 0:03:00]}  c5 {[%clk 0:02:57]} 2. Nf3 {[%clk 0:02:59]}  e6 {[%clk 0:02:55]} 3. d4 {[%clk 0:02:59]}  cxd4 {[%clk 0:02:55]} 4. Nxd4 {[%clk 0:03:00]}  a6 {[%clk 0:02:55]} 5. Bd3 {[%clk 0:02:59]}  Bc5 {[%clk 0:02:54]} 6. Nb3 {[%clk 0:02:59]}  Ba7 {[%clk 0:02:54]} 7. Qe2 {[%clk 0:02:55]}  Nc6 {[%clk 0:02:53]} 8. Nc3 {[%clk 0:02:55]}  Nge7 {[%clk 0:02:52]} 9. Be3 {[%clk 0:02:53]}  Bxe3 {[%clk 0:02:51]} 10. Qxe3 {[%clk 0:02:53]}  O-O {[%clk 0:02:51]} 11. h4 {[%clk 0:02:52]}  f5 {[%clk 0:02:45]} 12. e5 {[%clk 0:02:47]}  Nb4 {[%clk 0:02:40]} 13. f4 {[%clk 0:02:45]}  Ned5 {[%clk 0:02:31]} 14. Nxd5 {[%clk 0:02:44]}  Nxd5 {[%clk 0:02:31]} 15. Qd2 {[%clk 0:02:44]}  b5 {[%clk 0:02:28]} 16. O-O-O {[%clk 0:02:41]}  Bb7 {[%clk 0:02:25]} 17. Rhg1 {[%clk 0:02:41]}  Qxh4 {[%clk 0:02:20]} 18. g3 {[%clk 0:02:40]}  Qe7 {[%clk 0:02:15]} 19. Rh1 {[%clk 0:02:39]}  a5 {[%clk 0:02:08]} 20. Rh2 {[%clk 0:02:36]}  g6 {[%clk 0:02:05]} 21. Rdh1 {[%clk 0:02:36]}  Rf7 {[%clk 0:02:06]} 22. Bxb5 {[%clk 0:02:34]}  a4 {[%clk 0:02:05]} 23. Nd4 {[%clk 0:02:33]}  a3 {[%clk 0:02:04]} 24. b3 {[%clk 0:02:33]}  Nb4 {[%clk 0:01:57]} 25. Rd1 {[%clk 0:02:31]}  Nxa2+ {[%clk 0:01:55]} 26. Kb1 {[%clk 0:02:31]}  Nb4 {[%clk 0:01:55]} 27. Ka1 {[%clk 0:02:28]}  Rc8 {[%clk 0:01:49]} 28. c3 {[%clk 0:02:26]}  Nc6 {[%clk 0:01:45]} 29. c4 {[%clk 0:02:15]}  Nxd4 {[%clk 0:01:43]} 30. Qxd4 {[%clk 0:02:16]}  Bc6 {[%clk 0:01:43]} 31. Bxc6 {[%clk 0:02:11]}  Rxc6 {[%clk 0:01:42]} 32. Ka2 {[%clk 0:02:12]}  Qd8 {[%clk 0:01:36]} 33. Qa7 {[%clk 0:02:06]}  Rc8 {[%clk 0:01:30]} 34. Rd6 {[%clk 0:02:01]}  Ra8 {[%clk 0:01:29]} 35. Qb6 {[%clk 0:01:57]}  Qc8 {[%clk 0:01:22]} 36. Rhd2 {[%clk 0:01:36]}  Rb8 {[%clk 0:01:20]} 37. Qd4 {[%clk 0:01:35]}  Qb7 {[%clk 0:01:18]} 38. Qc3 {[%clk 0:01:32]}  Ra8 {[%clk 0:00:54]} 39. c5 {[%clk 0:01:30]}  Ra6 {[%clk 0:00:49]} 40. Qc4 {[%clk 0:01:23]}  Rxd6 {[%clk 0:00:48]} 41. cxd6 {[%clk 0:01:23]}  Rf8 {[%clk 0:00:47]} 42. Qc7 {[%clk 0:01:20]}  Qb4 {[%clk 0:00:42]} 43. Rc2 {[%clk 0:01:13]}  Rb8 {[%clk 0:00:34]} 44. Qc3 {[%clk 0:01:12]}  Qe4 {[%clk 0:00:23]} 45. Kxa3 {[%clk 0:01:11]}  Ra8+ {[%clk 0:00:20]} 46. Kb2 {[%clk 0:01:11]}  Qb7 {[%clk 0:00:18]} 47. Qc7 {[%clk 0:01:05]}  Qa6 {[%clk 0:00:18]} 48. Kc1 {[%clk 0:00:50]}  Qa1+ {[%clk 0:00:16]} 49. Kd2 {[%clk 0:00:50]}  Qd4+ {[%clk 0:00:16]} 50. Ke2 {[%clk 0:00:50]}  Qe4+ {[%clk 0:00:17]} 51. Kf2 {[%clk 0:00:50]}  Qd4+ {[%clk 0:00:17]} 52. Kg2 {[%clk 0:00:50]}  Qe4+ {[%clk 0:00:17]} 53. Kf2 {[%clk 0:00:47]}  Ra1 {[%clk 0:00:17]} 54. Qd8+ {[%clk 0:00:46]}  Kg7 {[%clk 0:00:17]} 55. Qe7+ {[%clk 0:00:40]}  Kh6 {[%clk 0:00:17]} 56. Qg5+ {[%clk 0:00:32]}  Kg7 {[%clk 0:00:17]} 57. Qf6+ {[%clk 0:00:16]}  Kh6 {[%clk 0:00:16]} 58. Re2 {[%clk 0:00:12]}  Qd4+ {[%clk 0:00:16]} 59. Kg2 {[%clk 0:00:06]}  Qd5+ {[%clk 0:00:16]} 60. Kh3 {[%clk 0:00:03]}  Qh1+ {[%clk 0:00:14]} 61. Rh2 {[%clk 0:00:03]}  Qf1+ {[%clk 0:00:09]} 62. Kh4 {[%clk 0:00:04]}  Qf3 {[%clk 0:00:03]} 63. Qf8# {[%clk 0:00:03]} 1-0


[Site "https://www.chess.com"]